{"text_format":"1","workbook":"xlsx","n_sheets":4,"sheets":["ОБЩО","Ведомствени разходи","Администрирани разходи","ПРБ неприлагащи прогр. бюджет"],"not_rendered":{"charts":0,"images":0,"macros":0,"external_links":0,"defined_names":0,"comments":0,"pivot_tables":0},"unopened":[],"bounds":{"document_bytes":16777216,"sheet_cells":100000,"rows_first":2000,"rows_last":500,"rows_between":2000,"halvings":0,"cell_chars":16384,"cell_head_chars":4096},"cells_cut":0,"cells_raw":0,"read":"whole","date_system":"1900"}

{"sheet":"ОБЩО","index":0,"n_rows":24,"n_cols":14,"rows_kept":24,"cut":false,"hidden":false,"merged":[[20,0,20,7],[21,0,21,7],[22,0,22,7],[23,0,23,7],[13,0,13,7],[14,0,14,7],[15,0,15,7],[16,0,16,7],[17,0,17,7],[18,0,18,7],[0,11,0,13],[1,0,1,13],[19,0,19,7],[6,0,6,7],[10,0,10,7],[11,0,11,7],[12,0,12,7],[7,0,7,7],[8,0,8,7],[9,0,9,7],[5,8,5,13],[3,1,3,9],[4,1,4,9]]}
[null,null,null,null,null,null,null,null,null,null,null,"Приложение \"Отчет разходи COVID-19\""]
["ОТЧЕТ ЗА ИЗВЪРШЕНИТЕ РАЗХОДИ \nВЪВ ВРЪЗКА С МЕРКИТЕ ЗА ПРЕДОТВРАТЯВАНЕ РАЗПРОСТРАНЕНИЕТО НА COVID-19 И ЛЕЧЕНИЕТО МУ, МЕРКИ ЗА ПОДКРЕПА НА БИЗНЕСА И СОЦИАЛНИ МЕРКИ\n"]
[null,null,null,null,null,null,null,null,null,null,"за периода от ","до"]
[null,"ПРБ МИНИСТЕРСТВО НА ЗДРАВЕОПАЗВАНЕТО",null,null,null,null,null,null,null,null,"01_01_2020","30_06_2020"]
[null,"/наименование на първостепенния разпоредител с бюджет/"]
[null,null,null,null,null,null,null,null,"ОТЧЕТНИ ДАННИ (в лева)"]
["ОБЩО РАЗХОДИ ",null,null,null,null,null,null,null,"БЮДЖЕТ","в т.ч. за сметка на дарения","КСФ","ДФЗ-РА","ДЕС","ДМП"]
["1. Персонал",null,null,null,null,null,null,null,{"$f":"SUM(I9:I11)","v":894962},{"$f":"SUM(J9:J11)","v":0},6978924,0,0,0]
["1.1. Заплати и възнаграждения за персонала, нает по трудови и служебни прав. ",null,null,null,null,null,null,null,{"$f":"'Ведомствени разходи'!I9+'Администрирани разходи'!I9+'ПРБ неприлагащи прогр. бюджет'!I9","v":694212},{"$f":"'Ведомствени разходи'!J9+'Администрирани разходи'!J9+'ПРБ неприлагащи прогр. бюджет'!J9","v":0},{"$f":"'Ведомствени разходи'!K9+'Администрирани разходи'!K9+'ПРБ неприлагащи прогр. бюджет'!K9","v":5416301},{"$f":"'Ведомствени разходи'!L9+'Администрирани разходи'!L9+'ПРБ неприлагащи прогр. бюджет'!L9","v":0},{"$f":"'Ведомствени разходи'!M9+'Администрирани разходи'!M9+'ПРБ неприлагащи прогр. бюджет'!M9","v":0},{"$f":"'Ведомствени разходи'!N9+'Администрирани разходи'!N9+'ПРБ неприлагащи прогр. бюджет'!N9","v":0}]
["1.2. Други възнаграждения и плащания за персонала ",null,null,null,null,null,null,null,{"$f":"'Ведомствени разходи'!I10+'Администрирани разходи'!I10+'ПРБ неприлагащи прогр. бюджет'!I10","v":12908},{"$f":"'Ведомствени разходи'!J10+'Администрирани разходи'!J10+'ПРБ неприлагащи прогр. бюджет'!J10","v":0},{"$f":"'Ведомствени разходи'!K10+'Администрирани разходи'!K10+'ПРБ неприлагащи прогр. бюджет'!K10","v":0},{"$f":"'Ведомствени разходи'!L10+'Администрирани разходи'!L10+'ПРБ неприлагащи прогр. бюджет'!L10","v":0},{"$f":"'Ведомствени разходи'!M10+'Администрирани разходи'!M10+'ПРБ неприлагащи прогр. бюджет'!M10","v":0},{"$f":"'Ведомствени разходи'!N10+'Администрирани разходи'!N10+'ПРБ неприлагащи прогр. бюджет'!N10","v":0}]
["1.3. Осигурителни вноски",null,null,null,null,null,null,null,{"$f":"'Ведомствени разходи'!I11+'Администрирани разходи'!I11+'ПРБ неприлагащи прогр. бюджет'!I11","v":187842},{"$f":"'Ведомствени разходи'!J11+'Администрирани разходи'!J11+'ПРБ неприлагащи прогр. бюджет'!J11","v":0},{"$f":"'Ведомствени разходи'!K11+'Администрирани разходи'!K11+'ПРБ неприлагащи прогр. бюджет'!K11","v":1562623},{"$f":"'Ведомствени разходи'!L11+'Администрирани разходи'!L11+'ПРБ неприлагащи прогр. бюджет'!L11","v":0},{"$f":"'Ведомствени разходи'!M11+'Администрирани разходи'!M11+'ПРБ неприлагащи прогр. бюджет'!M11","v":0},{"$f":"'Ведомствени разходи'!N11+'Администрирани разходи'!N11+'ПРБ неприлагащи прогр. бюджет'!N11","v":0}]
["2. Издръжка ",null,null,null,null,null,null,null,{"$f":"'Ведомствени разходи'!I12+'Администрирани разходи'!I12+'ПРБ неприлагащи прогр. бюджет'!I12","v":6829366},{"$f":"'Ведомствени разходи'!J12+'Администрирани разходи'!J12+'ПРБ неприлагащи прогр. бюджет'!J12","v":444102},{"$f":"'Ведомствени разходи'!K12+'Администрирани разходи'!K12+'ПРБ неприлагащи прогр. бюджет'!K12","v":11315037},{"$f":"'Ведомствени разходи'!L12+'Администрирани разходи'!L12+'ПРБ неприлагащи прогр. бюджет'!L12","v":0},{"$f":"'Ведомствени разходи'!M12+'Администрирани разходи'!M12+'ПРБ неприлагащи прогр. бюджет'!M12","v":0},{"$f":"'Ведомствени разходи'!N12+'Администрирани разходи'!N12+'ПРБ неприлагащи прогр. бюджет'!N12","v":0}]
["3. Лихви ",null,null,null,null,null,null,null,{"$f":"'Ведомствени разходи'!I13+'Администрирани разходи'!I13+'ПРБ неприлагащи прогр. бюджет'!I13","v":0},{"$f":"'Ведомствени разходи'!J13+'Администрирани разходи'!J13+'ПРБ неприлагащи прогр. бюджет'!J13","v":0},{"$f":"'Ведомствени разходи'!K13+'Администрирани разходи'!K13+'ПРБ неприлагащи прогр. бюджет'!K13","v":0},{"$f":"'Ведомствени разходи'!L13+'Администрирани разходи'!L13+'ПРБ неприлагащи прогр. бюджет'!L13","v":0},{"$f":"'Ведомствени разходи'!M13+'Администрирани разходи'!M13+'ПРБ неприлагащи прогр. бюджет'!M13","v":0},{"$f":"'Ведомствени разходи'!N13+'Администрирани разходи'!N13+'ПРБ неприлагащи прогр. бюджет'!N13","v":0}]
["в т. ч. външни ",null,null,null,null,null,null,null,{"$f":"'Ведомствени разходи'!I14+'Администрирани разходи'!I14+'ПРБ неприлагащи прогр. бюджет'!I14","v":0},{"$f":"'Ведомствени разходи'!J14+'Администрирани разходи'!J14+'ПРБ неприлагащи прогр. бюджет'!J14","v":0},{"$f":"'Ведомствени разходи'!K14+'Администрирани разходи'!K14+'ПРБ неприлагащи прогр. бюджет'!K14","v":0},{"$f":"'Ведомствени разходи'!L14+'Администрирани разходи'!L14+'ПРБ неприлагащи прогр. бюджет'!L14","v":0},{"$f":"'Ведомствени разходи'!M14+'Администрирани разходи'!M14+'ПРБ неприлагащи прогр. бюджет'!M14","v":0},{"$f":"'Ведомствени разходи'!N14+'Администрирани разходи'!N14+'ПРБ неприлагащи прогр. бюджет'!N14","v":0}]
["4. Социални разходи, стипендии",null,null,null,null,null,null,null,{"$f":"'Ведомствени разходи'!I15+'Администрирани разходи'!I15+'ПРБ неприлагащи прогр. бюджет'!I15","v":0},{"$f":"'Ведомствени разходи'!J15+'Администрирани разходи'!J15+'ПРБ неприлагащи прогр. бюджет'!J15","v":0},{"$f":"'Ведомствени разходи'!K15+'Администрирани разходи'!K15+'ПРБ неприлагащи прогр. бюджет'!K15","v":0},{"$f":"'Ведомствени разходи'!L15+'Администрирани разходи'!L15+'ПРБ неприлагащи прогр. бюджет'!L15","v":0},{"$f":"'Ведомствени разходи'!M15+'Администрирани разходи'!M15+'ПРБ неприлагащи прогр. бюджет'!M15","v":0},{"$f":"'Ведомствени разходи'!N15+'Администрирани разходи'!N15+'ПРБ неприлагащи прогр. бюджет'!N15","v":0}]
["в т. ч. стипендии",null,null,null,null,null,null,null,{"$f":"'Ведомствени разходи'!I16+'Администрирани разходи'!I16+'ПРБ неприлагащи прогр. бюджет'!I16","v":0},{"$f":"'Ведомствени разходи'!J16+'Администрирани разходи'!J16+'ПРБ неприлагащи прогр. бюджет'!J16","v":0},{"$f":"'Ведомствени разходи'!K16+'Администрирани разходи'!K16+'ПРБ неприлагащи прогр. бюджет'!K16","v":0},{"$f":"'Ведомствени разходи'!L16+'Администрирани разходи'!L16+'ПРБ неприлагащи прогр. бюджет'!L16","v":0},{"$f":"'Ведомствени разходи'!M16+'Администрирани разходи'!M16+'ПРБ неприлагащи прогр. бюджет'!M16","v":0},{"$f":"'Ведомствени разходи'!N16+'Администрирани разходи'!N16+'ПРБ неприлагащи прогр. бюджет'!N16","v":0}]
["5.Субсидии ",null,null,null,null,null,null,null,{"$f":"'Ведомствени разходи'!I17+'Администрирани разходи'!I17+'ПРБ неприлагащи прогр. бюджет'!I17","v":410115},{"$f":"'Ведомствени разходи'!J17+'Администрирани разходи'!J17+'ПРБ неприлагащи прогр. бюджет'!J17","v":136115},{"$f":"'Ведомствени разходи'!K17+'Администрирани разходи'!K17+'ПРБ неприлагащи прогр. бюджет'!K17","v":13640555},{"$f":"'Ведомствени разходи'!L17+'Администрирани разходи'!L17+'ПРБ неприлагащи прогр. бюджет'!L17","v":0},{"$f":"'Ведомствени разходи'!M17+'Администрирани разходи'!M17+'ПРБ неприлагащи прогр. бюджет'!M17","v":0},{"$f":"'Ведомствени разходи'!N17+'Администрирани разходи'!N17+'ПРБ неприлагащи прогр. бюджет'!N17","v":0}]
["6. Придобиване на нeфинансови активи",null,null,null,null,null,null,null,{"$f":"'Ведомствени разходи'!I18+'Администрирани разходи'!I18+'ПРБ неприлагащи прогр. бюджет'!I18","v":650634},{"$f":"'Ведомствени разходи'!J18+'Администрирани разходи'!J18+'ПРБ неприлагащи прогр. бюджет'!J18","v":26468},{"$f":"'Ведомствени разходи'!K18+'Администрирани разходи'!K18+'ПРБ неприлагащи прогр. бюджет'!K18","v":4168593},{"$f":"'Ведомствени разходи'!L18+'Администрирани разходи'!L18+'ПРБ неприлагащи прогр. бюджет'!L18","v":0},{"$f":"'Ведомствени разходи'!M18+'Администрирани разходи'!M18+'ПРБ неприлагащи прогр. бюджет'!M18","v":0},{"$f":"'Ведомствени разходи'!N18+'Администрирани разходи'!N18+'ПРБ неприлагащи прогр. бюджет'!N18","v":0}]
["7. Капиталови трансфери",null,null,null,null,null,null,null,{"$f":"'Ведомствени разходи'!I19+'Администрирани разходи'!I19+'ПРБ неприлагащи прогр. бюджет'!I19","v":0},{"$f":"'Ведомствени разходи'!J19+'Администрирани разходи'!J19+'ПРБ неприлагащи прогр. бюджет'!J19","v":0},{"$f":"'Ведомствени разходи'!K19+'Администрирани разходи'!K19+'ПРБ неприлагащи прогр. бюджет'!K19","v":0},{"$f":"'Ведомствени разходи'!L19+'Администрирани разходи'!L19+'ПРБ неприлагащи прогр. бюджет'!L19","v":0},{"$f":"'Ведомствени разходи'!M19+'Администрирани разходи'!M19+'ПРБ неприлагащи прогр. бюджет'!M19","v":0},{"$f":"'Ведомствени разходи'!N19+'Администрирани разходи'!N19+'ПРБ неприлагащи прогр. бюджет'!N19","v":0}]
["8. Предоставени текущи и капиталови трансфери за чужбина",null,null,null,null,null,null,null,{"$f":"'Ведомствени разходи'!I20+'Администрирани разходи'!I20+'ПРБ неприлагащи прогр. бюджет'!I20","v":0},{"$f":"'Ведомствени разходи'!J20+'Администрирани разходи'!J20+'ПРБ неприлагащи прогр. бюджет'!J20","v":0},{"$f":"'Ведомствени разходи'!K20+'Администрирани разходи'!K20+'ПРБ неприлагащи прогр. бюджет'!K20","v":0},{"$f":"'Ведомствени разходи'!L20+'Администрирани разходи'!L20+'ПРБ неприлагащи прогр. бюджет'!L20","v":0},{"$f":"'Ведомствени разходи'!M20+'Администрирани разходи'!M20+'ПРБ неприлагащи прогр. бюджет'!M20","v":0},{"$f":"'Ведомствени разходи'!N20+'Администрирани разходи'!N20+'ПРБ неприлагащи прогр. бюджет'!N20","v":0}]
["9. Прираст на държавния резерв и изкупуване на земеделска продукция ",null,null,null,null,null,null,null,{"$f":"SUM(I22:I23)","v":0},{"$f":"SUM(J22:J23)","v":0},0,0,0,0]
["в т. ч. плащания за попълване на държавния резерв",null,null,null,null,null,null,null,{"$f":"'Ведомствени разходи'!I22+'Администрирани разходи'!I22+'ПРБ неприлагащи прогр. бюджет'!I22","v":0},{"$f":"'Ведомствени разходи'!J22+'Администрирани разходи'!J22+'ПРБ неприлагащи прогр. бюджет'!J22","v":0},{"$f":"'Ведомствени разходи'!K22+'Администрирани разходи'!K22+'ПРБ неприлагащи прогр. бюджет'!K22","v":0},{"$f":"'Ведомствени разходи'!L22+'Администрирани разходи'!L22+'ПРБ неприлагащи прогр. бюджет'!L22","v":0},{"$f":"'Ведомствени разходи'!M22+'Администрирани разходи'!M22+'ПРБ неприлагащи прогр. бюджет'!M22","v":0},{"$f":"'Ведомствени разходи'!N22+'Администрирани разходи'!N22+'ПРБ неприлагащи прогр. бюджет'!N22","v":0}]
["          постъпления от продажби на държавния резерв (-)",null,null,null,null,null,null,null,{"$f":"'Ведомствени разходи'!I23+'Администрирани разходи'!I23+'ПРБ неприлагащи прогр. бюджет'!I23","v":0},{"$f":"'Ведомствени разходи'!J23+'Администрирани разходи'!J23+'ПРБ неприлагащи прогр. бюджет'!J23","v":0},{"$f":"'Ведомствени разходи'!K23+'Администрирани разходи'!K23+'ПРБ неприлагащи прогр. бюджет'!K23","v":0},{"$f":"'Ведомствени разходи'!L23+'Администрирани разходи'!L23+'ПРБ неприлагащи прогр. бюджет'!L23","v":0},{"$f":"'Ведомствени разходи'!M23+'Администрирани разходи'!M23+'ПРБ неприлагащи прогр. бюджет'!M23","v":0},{"$f":"'Ведомствени разходи'!N23+'Администрирани разходи'!N23+'ПРБ неприлагащи прогр. бюджет'!N23","v":0}]
["ВСИЧКО РАЗХОДИ",null,null,null,null,null,null,null,{"$f":"+I8+I12+I13+I15+I17+I18+I19+I20+I21","v":8785077},{"$f":"+J8+J12+J13+J15+J17+J18+J19+J20+J21","v":606685},36103109,0,0,0]

{"sheet":"Ведомствени разходи","index":1,"n_rows":24,"n_cols":14,"rows_kept":24,"cut":false,"hidden":false,"merged":[[22,0,22,7],[23,0,23,7],[1,0,1,13],[3,1,3,9],[4,1,4,9],[5,8,5,13],[6,0,6,7],[21,0,21,7],[16,0,16,7],[17,0,17,7],[18,0,18,7],[19,0,19,7],[20,0,20,7],[7,0,7,7],[8,0,8,7],[10,0,10,7],[15,0,15,7],[9,0,9,7],[13,0,13,7],[14,0,14,7],[0,11,0,13],[11,0,11,7],[12,0,12,7]]}
[null,null,null,null,null,null,null,null,null,null,null,"Приложение \"Отчет разходи COVID-19\""]
["ОТЧЕТ ЗА ИЗВЪРШЕНИТЕ ВЕДОМСТВЕНИ РАЗХОДИ \nВЪВ ВРЪЗКА С МЕРКИТЕ ЗА ПРЕДОТВРАТЯВАНЕ РАЗПРОСТРАНЕНИЕТО НА COVID-19 И ЛЕЧЕНИЕТО МУ, МЕРКИ ЗА ПОДКРЕПА НА БИЗНЕСА И СОЦИАЛНИ МЕРКИ\n"]
[null,null,null,null,null,null,null,null,null,null,"за периода от ","до"]
[null,{"$f":"IF(ISBLANK(ОБЩО!B4:J4),\"\",ОБЩО!B4:J4)","v":"ПРБ МИНИСТЕРСТВО НА ЗДРАВЕОПАЗВАНЕТО"},null,null,null,null,null,null,null,null,{"$f":"IF(ISBLANK(ОБЩО!K4),\"\",ОБЩО!K4)","v":"01_01_2020"},{"$f":"IF(ISBLANK(ОБЩО!L4),\"\",ОБЩО!L4)","v":"30_06_2020"}]
[null,"/наименование на първостепенния разпоредител с бюджет/"]
[null,null,null,null,null,null,null,null,"ОТЧЕТНИ ДАННИ (в лева)"]
["ВЕДОМСТВЕНИ РАЗХОДИ ",null,null,null,null,null,null,null,"БЮДЖЕТ","в т.ч. за сметка на дарения","КСФ","ДФЗ-РА","ДЕС","ДМП"]
["1. Персонал",null,null,null,null,null,null,null,{"$f":"SUM(I9:I11)","v":894962},{"$f":"SUM(J9:J11)","v":0},6978924,0,0,0]
["1.1. Заплати и възнаграждения за персонала, нает по трудови и служебни прав. ",null,null,null,null,null,null,null,694212,0,5416301,null,0,0]
["1.2. Други възнаграждения и плащания за персонала ",null,null,null,null,null,null,null,12908,0,0,null,0,0]
["1.3. Осигурителни вноски",null,null,null,null,null,null,null,187842,0,1562623,null,0,0]
["2. Издръжка ",null,null,null,null,null,null,null,6829366,{"$f":"89993+354109","v":444102},11315037,null,0,0]
["3. Лихви ",null,null,null,null,null,null,null,0,0,0,null,0,0]
["в т. ч. външни ",null,null,null,null,null,null,null,0,0,0,null,0,0]
["4. Социални разходи, стипендии",null,null,null,null,null,null,null,0,0,0,null,0,0]
["в т. ч. стипендии",null,null,null,null,null,null,null,0,0,0,null,0,0]
["5.Субсидии ",null,null,null,null,null,null,null,0,0,0,null,0,0]
["6. Придобиване на нeфинансови активи",null,null,null,null,null,null,null,650634,26468,4168593,null,0,0]
["7. Капиталови трансфери",null,null,null,null,null,null,null,0,0,0,null,0,0]
["8. Предоставени текущи и капиталови трансфери за чужбина",null,null,null,null,null,null,null,0,0,0,null,0,0]
["9. Прираст на държавния резерв и изкупуване на земеделска продукция ",null,null,null,null,null,null,null,{"$f":"SUM(I22:I23)","v":0},{"$f":"SUM(J22:J23)","v":0},0,0,0,0]
["в т. ч. плащания за попълване на държавния резерв",null,null,null,null,null,null,null,0,0,0,null,0,0]
["          постъпления от продажби на държавния резерв (-)",null,null,null,null,null,null,null,0,0,0,null,0,0]
["ВСИЧКО РАЗХОДИ",null,null,null,null,null,null,null,{"$f":"+I8+I12+I13+I15+I17+I18+I19+I20+I21","v":8374962},{"$f":"+J8+J12+J13+J15+J17+J18+J19+J20+J21","v":470570},22462554,0,0,0]

{"sheet":"Администрирани разходи","index":2,"n_rows":24,"n_cols":14,"rows_kept":24,"cut":false,"hidden":false,"merged":[[20,0,20,7],[22,0,22,7],[23,0,23,7],[21,0,21,7],[9,0,9,7],[16,0,16,7],[17,0,17,7],[18,0,18,7],[19,0,19,7],[11,0,11,7],[12,0,12,7],[13,0,13,7],[14,0,14,7],[15,0,15,7],[10,0,10,7],[0,11,0,13],[7,0,7,7],[8,0,8,7],[1,0,1,13],[3,1,3,9],[4,1,4,9],[5,8,5,13],[6,0,6,7]]}
[null,null,null,null,null,null,null,null,null,null,null,"Приложение \"Отчет разходи COVID-19\""]
["ОТЧЕТ ЗА ИЗВЪРШЕНИТЕ АДМИНИСТРИРАНИ РАЗХОДИ \nВЪВ ВРЪЗКА С МЕРКИТЕ ЗА ПРЕДОТВРАТЯВАНЕ РАЗПРОСТРАНЕНИЕТО НА COVID-19 И ЛЕЧЕНИЕТО МУ, МЕРКИ ЗА ПОДКРЕПА НА БИЗНЕСА И СОЦИАЛНИ МЕРКИ\n"]
[null,null,null,null,null,null,null,null,null,null,"за периода от ","до"]
[null,{"$f":"IF(ISBLANK(ОБЩО!B4:J4),\"\",ОБЩО!B4:J4)","v":"ПРБ МИНИСТЕРСТВО НА ЗДРАВЕОПАЗВАНЕТО"},null,null,null,null,null,null,null,null,{"$f":"IF(ISBLANK(ОБЩО!K4),\"\",ОБЩО!K4)","v":"01_01_2020"},{"$f":"IF(ISBLANK(ОБЩО!L4),\"\",ОБЩО!L4)","v":"30_06_2020"}]
[null,"/наименование на първостепенния разпоредител с бюджет/"]
[null,null,null,null,null,null,null,null,"ОТЧЕТНИ ДАННИ (в лева)"]
["АДМИНИСТРИРАНИ РАЗХОДИ ",null,null,null,null,null,null,null,"БЮДЖЕТ","в т.ч. за сметка на дарения","КСФ","ДФЗ-РА","ДЕС","ДМП"]
["1. Персонал",null,null,null,null,null,null,null,{"$f":"SUM(I9:I11)","v":0},{"$f":"SUM(J9:J11)","v":0},0,0,0,0]
["1.1. Заплати и възнаграждения за персонала, нает по трудови и служебни прав. ",null,null,null,null,null,null,null,0,0,0,null,0,0]
["1.2. Други възнаграждения и плащания за персонала ",null,null,null,null,null,null,null,0,0,0,null,0,0]
["1.3. Осигурителни вноски",null,null,null,null,null,null,null,0,0,0,null,0,0]
["2. Издръжка ",null,null,null,null,null,null,null,0,0,0,null,0,0]
["3. Лихви ",null,null,null,null,null,null,null,0,0,0,null,0,0]
["в т. ч. външни ",null,null,null,null,null,null,null,0,0,0,null,0,0]
["4. Социални разходи, стипендии",null,null,null,null,null,null,null,0,0,0,null,0,0]
["в т. ч. стипендии",null,null,null,null,null,null,null,0,0,0,null,0,0]
["5.Субсидии ",null,null,null,null,null,null,null,410115,136115,13640555,null,0,0]
["6. Придобиване на нeфинансови активи",null,null,null,null,null,null,null,0,0,0,null,0,0]
["7. Капиталови трансфери",null,null,null,null,null,null,null,0,0,0,null,0,0]
["8. Предоставени текущи и капиталови трансфери за чужбина",null,null,null,null,null,null,null,0,0,0,null,0,0]
["9. Прираст на държавния резерв и изкупуване на земеделска продукция ",null,null,null,null,null,null,null,{"$f":"SUM(I22:I23)","v":0},{"$f":"SUM(J22:J23)","v":0},0,0,0,0]
["в т. ч. плащания за попълване на държавния резерв",null,null,null,null,null,null,null,0,0,0,null,0,0]
["          постъпления от продажби на държавния резерв (-)",null,null,null,null,null,null,null,0,0,0,null,0,0]
["ВСИЧКО РАЗХОДИ",null,null,null,null,null,null,null,{"$f":"+I8+I12+I13+I15+I17+I18+I19+I20+I21","v":410115},{"$f":"+J8+J12+J13+J15+J17+J18+J19+J20+J21","v":136115},13640555,0,0,0]

{"sheet":"ПРБ неприлагащи прогр. бюджет","index":3,"n_rows":27,"n_cols":14,"rows_kept":27,"cut":false,"hidden":false,"merged":[[20,0,20,7],[21,0,21,7],[22,0,22,7],[23,0,23,7],[14,0,14,7],[15,0,15,7],[16,0,16,7],[17,0,17,7],[18,0,18,7],[19,0,19,7],[0,11,0,13],[13,0,13,7],[1,0,1,13],[3,1,3,9],[4,1,4,9],[5,8,5,13],[6,0,6,7],[7,0,7,7],[8,0,8,7],[9,0,9,7],[10,0,10,7],[11,0,11,7],[12,0,12,7]]}
[null,null,null,null,null,null,null,null,null,null,null,"Приложение \"Отчет разходи COVID-19\""]
["ОТЧЕТ ЗА ИЗВЪРШЕНИТЕ РАЗХОДИ \nВЪВ ВРЪЗКА С МЕРКИТЕ ЗА ПРЕДОТВРАТЯВАНЕ РАЗПРОСТРАНЕНИЕТО НА COVID-19 И ЛЕЧЕНИЕТО МУ, МЕРКИ ЗА ПОДКРЕПА НА БИЗНЕСА И СОЦИАЛНИ МЕРКИ\n"]
[null,null,null,null,null,null,null,null,null,null,"за периода от ","до"]
[null,{"$f":"IF(ISBLANK(ОБЩО!B4:J4),\"\",ОБЩО!B4:J4)","v":"ПРБ МИНИСТЕРСТВО НА ЗДРАВЕОПАЗВАНЕТО"},null,null,null,null,null,null,null,null,{"$f":"IF(ISBLANK(ОБЩО!K4),\"\",ОБЩО!K4)","v":"01_01_2020"},{"$f":"IF(ISBLANK(ОБЩО!L4),\"\",ОБЩО!L4)","v":"30_06_2020"}]
[null,"/наименование на първостепенния разпоредител с бюджет/"]
[null,null,null,null,null,null,null,null,"ОТЧЕТНИ ДАННИ (в лева)"]
["РАЗХОДИ ",null,null,null,null,null,null,null,"БЮДЖЕТ","в т.ч. за сметка на дарения","КСФ","ДФЗ-РА","ДЕС","ДМП"]
["1. Персонал",null,null,null,null,null,null,null,{"$f":"SUM(I9:I11)","v":0},{"$f":"SUM(J9:J11)","v":0},0,0,0,0]
["1.1. Заплати и възнаграждения за персонала, нает по трудови и служебни прав. "]
["1.2. Други възнаграждения и плащания за персонала "]
["1.3. Осигурителни вноски"]
["2. Издръжка "]
["3. Лихви "]
["в т. ч. външни "]
["4. Социални разходи, стипендии"]
["в т. ч. стипендии"]
["5.Субсидии "]
["6. Придобиване на нeфинансови активи"]
["7. Капиталови трансфери"]
["8. Предоставени текущи и капиталови трансфери за чужбина"]
["9. Прираст на държавния резерв и изкупуване на земеделска продукция ",null,null,null,null,null,null,null,{"$f":"SUM(I22:I23)","v":0},{"$f":"SUM(J22:J23)","v":0},0,0,0,0]
["в т. ч. плащания за попълване на държавния резерв"]
["          постъпления от продажби на държавния резерв (-)"]
["ВСИЧКО РАЗХОДИ",null,null,null,null,null,null,null,{"$f":"+I8+I12+I13+I15+I17+I18+I19+I20+I21","v":0},{"$f":"+J8+J12+J13+J15+J17+J18+J19+J20+J21","v":0},0,0,0,0]
[]
[]
["* Тази страница се попълва само от ПРБ, които не прилагат програмен формат на бюджет."]